fUSD/lending_fUSD_20260526
["ID","MTS","AMOUNT","RATE_DAILY","PERIOD"]
[423036962,1779780703000,-500.0,0.00039457,120]
[423036950,1779780703000,-900.0,0.00039457,31]
[423036953,1779780703000,-900.0,0.00039457,31]
[423036958,1779780703000,-2000.0,0.00039457,120]
[423036959,1779780703000,-500.0,0.00039457,120]
[423036951,1779780703000,-900.0,0.00039457,31]
[423036973,1779780703000,-500.0,0.00039457,120]
[423037012,1779780703000,-3525.39835804,0.00039457,120]
[423036978,1779780703000,-500.0,0.00039457,120]
[423036997,1779780703000,-175.20519489,0.00039457,120]
[423037004,1779780703000,-185.08677069,0.00039457,120]
[423036995,1779780703000,-158.43529161,0.00039457,30]
[423036996,1779780703000,-7798.28955712,0.00039457,120]
[423036999,1779780703000,-1698.21143672,0.00039457,90]
[423036998,1779780703000,-181.97189923,0.00039457,30]
[423037001,1779780703000,-153.76757058,0.00039457,120]
[423037002,1779780703000,-8844.51503014,0.00039457,120]
[423037006,1779780703000,-163.2338527,0.00039457,120]
[423037016,1779780703000,-500.0,0.00039457,120]
[423037007,1779780703000,-170.23857256,0.00039457,120]
[423037005,1779780703000,-155.19795321,0.00039457,120]
[423037009,1779780703000,-664.21541281,0.00039457,120]
[423036977,1779780703000,-500.0,0.00039457,120]
[423037000,1779780703000,-157.0052144,0.00039457,120]
[423037003,1779780703000,-161.76101018,0.00039457,30]
[423037008,1779780703000,-153.6024197,0.00039457,30]
[423036992,1779780703000,-1995.25142738,0.00039457,45]
[423036994,1779780703000,-170.65991778,0.00039457,30]
[423036988,1779780703000,-156.27410323,0.00039457,30]
[423036989,1779780703000,-530280.04702678,0.00039457,30]
[423036979,1779780703000,-500.0,0.00039457,120]
[423036980,1779780703000,-500.0,0.00039457,120]
[423036982,1779780703000,-500.0,0.00039457,120]
[423036981,1779780703000,-500.0,0.00039457,120]
[423036990,1779780703000,-164.69089335,0.00039457,120]
[423036984,1779780703000,-555.65170608,0.00039457,120]
[423036985,1779780703000,-151.29935925,0.00039457,30]
[423036986,1779780703000,-151.91496027,0.00039457,120]
[423036987,1779780703000,-153.91625956,0.00039457,120]
[423036993,1779780703000,-708.77297178,0.00039457,120]
[423036983,1779780703000,-500.0,0.00039457,120]
[423036991,1779780703000,-160.53907851,0.00039457,120]
[423037119,1779780704000,-500.0,0.00039457,120]
[423037109,1779780704000,-166.23373197,0.00039457,120]
[423037118,1779780704000,-500.0,0.00039457,120]
[423037112,1779780704000,-166.23373197,0.00039457,120]
[423037116,1779780704000,-4168.761974,0.00039457,120]
[423037120,1779780704000,-500.0,0.00039457,120]
[423037115,1779780704000,-166.23373197,0.00039457,120]
[423037113,1779780704000,-166.23373197,0.00039457,120]
[423037121,1779780704000,-540.08181901,0.00039457,120]
[423037105,1779780704000,-473.422231,0.00039457,120]
[423037111,1779780704000,-166.23373197,0.00039457,120]
[423037099,1779780704000,-343.31225706,0.00039457,120]
[423037110,1779780704000,-166.23373197,0.00039457,120]
[423037114,1779780704000,-166.23373197,0.00039457,120]
[423037124,1779780704000,-5106.06,0.00039457,120]
[423037122,1779780704000,-175.77771872,0.00039457,120]
[423037126,1779780704000,-587.78,0.00039457,120]
[423037130,1779780704000,-45217.11,0.00039457,120]
[423037131,1779780704000,-546.278447,0.00039457,120]
[423037127,1779780704000,-2654.17905656,0.00039457,60]
[423037128,1779780704000,-314.0,0.00039457,120]
[423037125,1779780704000,-504.2020274,0.00039457,120]
[423037133,1779780704000,-500.0,0.00039457,120]
[423037129,1779780704000,-500.0,0.00039457,30]
[423037134,1779780704000,-500.0,0.00039457,120]
[423037123,1779780704000,-5000.0,0.00039457,120]
[423037135,1779780704000,-360.94445244,0.00039457,120]
[423037102,1779780704000,-343.31225706,0.00039457,120]
[423037117,1779780704000,-3033.0,0.00039457,30]
[423037096,1779780704000,-254.72641238,0.00039457,120]
[423037088,1779780704000,-500.0,0.00039457,120]
[423037108,1779780704000,-166.23373197,0.00039457,120]
[423037078,1779780704000,-325.53,0.00039457,5]
[423037075,1779780704000,-5000.0,0.00039457,120]
[423037077,1779780704000,-4000.0,0.00039457,120]
[423037079,1779780704000,-200000.0,0.00039457,120]
[423037076,1779780704000,-151.99845604,0.00039457,120]
[423037080,1779780704000,-500.0,0.00039457,120]
[423037081,1779780704000,-209.30905394,0.00039457,30]
[423037083,1779780704000,-500.0,0.00039457,120]
[423037094,1779780704000,-1700.0,0.00039457,120]
[423037082,1779780704000,-36658.56420086,0.00039457,90]
[423037084,1779780704000,-500.0,0.00039457,120]
[423037093,1779780704000,-180.00202963,0.00039457,120]
[423037085,1779780704000,-297.37379372,0.00039457,120]
[423037098,1779780704000,-343.31225706,0.00039457,120]
[423037136,1779780704000,-428.42531376,0.00039457,120]
[423037090,1779780704000,-180.00202963,0.00039457,120]
[423037086,1779780704000,-3817.62270218,0.00039457,120]
[423037087,1779780704000,-22508.0,0.00039457,120]
[423037089,1779780704000,-519.4068939,0.00039457,120]
[423037092,1779780704000,-180.00202963,0.00039457,120]
[423037095,1779780704000,-641.8684325,0.00039457,120]
[423037097,1779780704000,-343.31225706,0.00039457,120]
[423037100,1779780704000,-343.31225706,0.00039457,120]
[423037101,1779780704000,-343.31225706,0.00039457,120]
[423037103,1779780704000,-343.31225706,0.00039457,120]
[423037107,1779780704000,-345.225,0.00039457,120]
[423037104,1779780704000,-343.31225706,0.00039457,120]
[423037106,1779780704000,-14823.54754981,0.00039457,120]
[423037091,1779780704000,-180.00202963,0.00039457,120]
[423037137,1779780704000,-2188.96731582,0.00039457,120]
[423037132,1779780704000,-523.799988,0.00039457,120]
[423037147,1779780704000,-150.99,0.00039457,2]
[423037172,1779780704000,-500.0,0.00039457,120]
[423037174,1779780704000,-500.0,0.00039457,120]
[423037177,1779780704000,-500.0,0.00039457,120]
[423037182,1779780704000,-500.0,0.00039457,120]
[423037184,1779780704000,-500.0,0.00039457,120]
[423037175,1779780704000,-508.51867722,0.00039457,2]
[423037173,1779780704000,-500.0,0.00039457,120]
[423037181,1779780704000,-500.0,0.00039457,120]
[423037183,1779780704000,-500.0,0.00039457,120]
[423037176,1779780704000,-500.0,0.00039457,120]
[423037179,1779780704000,-500.0,0.00039457,120]
[423037180,1779780704000,-500.0,0.00039457,120]
[423037178,1779780704000,-500.0,0.00039457,120]
[423037186,1779780704000,-500.0,0.00039457,120]
[423037187,1779780704000,-528.81693487,0.00039457,120]
[423037189,1779780704000,-510.02767444,0.00039457,120]
[423037191,1779780704000,-200.0,0.00039457,10]
[423037197,1779780704000,-508.184188,0.00039457,120]
[423037185,1779780704000,-500.0,0.00039457,120]
[423037190,1779780704000,-235.0,0.00039457,2]
[423037196,1779780704000,-500.0,0.00039457,120]
[423037188,1779780704000,-2163.578799,0.00039457,30]
[423037192,1779780704000,-280.039831,0.00039457,10]
[423037193,1779780704000,-500.0,0.00039457,120]
[423037139,1779780704000,-550.29494103,0.00039457,120]
[423037194,1779780704000,-500.0,0.00039457,120]
[423037198,1779780704000,-1619.43820125,0.00039457,120]
[423037199,1779780704000,-1619.43820125,0.00039457,120]
[423037200,1779780704000,-1619.43820125,0.00039457,120]
[423037167,1779780704000,-200.0,0.00039457,2]
[423037165,1779780704000,-50000.0,0.00039457,53]
[423037195,1779780704000,-500.0,0.00039457,120]
[423037161,1779780704000,-50000.0,0.00039457,58]
[423037171,1779780704000,-500.0,0.00039457,120]
[423037138,1779780704000,-5389.28152228,0.00039457,120]
[423037143,1779780704000,-150.99,0.00039457,2]
[423037144,1779780704000,-150.99,0.00039457,2]
[423037145,1779780704000,-150.99,0.00039457,2]
[423037146,1779780704000,-150.99,0.00039457,2]
[423037141,1779780704000,-150.99,0.00039457,2]
[423037142,1779780704000,-150.99,0.00039457,2]
[423037149,1779780704000,-201.82,0.00039457,120]
[423037159,1779780704000,-50000.0,0.00039457,56]
[423037151,1779780704000,-403.21416874,0.00039457,30]
[423037148,1779780704000,-187.49993625,0.00039457,27]
[423037150,1779780704000,-200.78536231,0.00039457,120]
[423037152,1779780704000,-50000.0,0.00039457,48]
[423037140,1779780704000,-151.02,0.00039457,2]
[423037158,1779780704000,-50000.0,0.00039457,55]
[423037153,1779780704000,-50000.0,0.00039457,49]
[423037170,1779780704000,-500.0,0.00039457,120]
[423037168,1779780704000,-500.0,0.00039457,120]
[423037166,1779780704000,-200.0,0.00039457,2]
[423037163,1779780704000,-1974.09493384,0.00039457,7]
[423037169,1779780704000,-500.0,0.00039457,120]
[423037162,1779780704000,-50000.0,0.00039457,59]
[423037164,1779780704000,-200.0,0.00039457,2]
[423037156,1779780704000,-50000.0,0.00039457,52]
[423037157,1779780704000,-50000.0,0.00039457,54]
[423037155,1779780704000,-50000.0,0.00039457,51]
[423037160,1779780704000,-50000.0,0.00039457,57]
[423037154,1779780704000,-50000.0,0.00039457,50]
[423037245,1779780705000,-1619.43820125,0.00039457,120]
[423037238,1779780705000,-1619.43820125,0.00039457,120]
[423037236,1779780705000,-1619.43820125,0.00039457,120]
[423037237,1779780705000,-1619.43820125,0.00039457,120]
[423037227,1779780705000,-1619.43820125,0.00039457,120]
[423037230,1779780705000,-1619.43820125,0.00039457,120]
[423037229,1779780705000,-1619.43820125,0.00039457,120]
[423037233,1779780705000,-1619.43820125,0.00039457,120]
[423037239,1779780705000,-1619.43820125,0.00039457,120]
[423037231,1779780705000,-1619.43820125,0.00039457,120]
[423037228,1779780705000,-1619.43820125,0.00039457,120]
[423037232,1779780705000,-1619.43820125,0.00039457,120]
[423037243,1779780705000,-1619.43820125,0.00039457,120]
[423037247,1779780705000,-500.0,0.00039457,2]
[423037246,1779780705000,-1619.43820125,0.00039457,120]
[423037241,1779780705000,-1619.43820125,0.00039457,120]
[423037242,1779780705000,-1619.43820125,0.00039457,120]
[423037244,1779780705000,-1619.43820125,0.00039457,120]
[423037260,1779780705000,-152.0,0.00039458,120]
[423037249,1779780705000,-500.0,0.00039457,120]
[423037261,1779780705000,-1473.0,0.00039458,120]
[423037259,1779780705000,-261.43,0.00039457,2]
[423037226,1779780705000,-1619.43820125,0.00039457,120]
[423037251,1779780705000,-202.42977513,0.00039457,120]
[423037240,1779780705000,-1619.43820125,0.00039457,120]
[423037235,1779780705000,-1619.43820125,0.00039457,120]
[423037211,1779780705000,-1619.43820125,0.00039457,120]
[423037224,1779780705000,-1619.43820125,0.00039457,120]
[423037248,1779780705000,-500.0,0.00039457,120]
[423037209,1779780705000,-1619.43820125,0.00039457,120]
[423037207,1779780705000,-1619.43820125,0.00039457,120]
[423037210,1779780705000,-1619.43820125,0.00039457,120]
[423037201,1779780705000,-1619.43820125,0.00039457,120]
[423037208,1779780705000,-1619.43820125,0.00039457,120]
[423037202,1779780705000,-1619.43820125,0.00039457,120]
[423037203,1779780705000,-1619.43820125,0.00039457,120]
[423037204,1779780705000,-1619.43820125,0.00039457,120]
[423037206,1779780705000,-1619.43820125,0.00039457,120]
[423037205,1779780705000,-1619.43820125,0.00039457,120]
[423037225,1779780705000,-1619.43820125,0.00039457,120]
[423037213,1779780705000,-1619.43820125,0.00039457,120]
[423037220,1779780705000,-1619.43820125,0.00039457,120]
[423037222,1779780705000,-1619.43820125,0.00039457,120]
[423037221,1779780705000,-1619.43820125,0.00039457,120]
[423037218,1779780705000,-1619.43820125,0.00039457,120]
[423037217,1779780705000,-1619.43820125,0.00039457,120]
[423037212,1779780705000,-1619.43820125,0.00039457,120]
[423037215,1779780705000,-1619.43820125,0.00039457,120]
[423037216,1779780705000,-1619.43820125,0.00039457,120]
[423037219,1779780705000,-1619.43820125,0.00039457,120]
[423037223,1779780705000,-1619.43820125,0.00039457,120]
[423037234,1779780705000,-1619.43820125,0.00039457,120]
[423037214,1779780705000,-1619.43820125,0.00039457,120]
[423037252,1779780705000,-202.42977513,0.00039457,120]
[423037303,1779780705000,-1006.93019351,0.00039593,120]
[423037254,1779780705000,-202.42977513,0.00039457,120]
[423037286,1779780705000,-233.25271778,0.000395,120]
[423037296,1779780705000,-1006.93019351,0.00039593,120]
[423037287,1779780705000,-525.0,0.00039505,17]
[423037285,1779780705000,-8364.32119913,0.000395,120]
[423037288,1779780705000,-1570.90331759,0.0003953,120]
[423037292,1779780705000,-1006.93019351,0.00039593,120]
[423037294,1779780705000,-1006.93019351,0.00039593,120]
[423037291,1779780705000,-1006.93019352,0.00039593,120]
[423037290,1779780705000,-575.34934104,0.00039592,2]
[423037289,1779780705000,-3719.94387235,0.0003958,90]
[423037295,1779780705000,-1006.93019351,0.00039593,120]
[423037284,1779780705000,-2041.67714486,0.000395,120]
[423037297,1779780705000,-1006.93019351,0.00039593,120]
[423037305,1779780705000,-174.64734603,0.000396,60]
[423037306,1779780705000,-2439.02,0.000396,120]
[423037301,1779780705000,-1006.93019351,0.00039593,120]
[423037304,1779780705000,-100359.0,0.000396,15]
[423037298,1779780705000,-1006.93019351,0.00039593,120]
[423037300,1779780705000,-1006.93019351,0.00039593,120]
[423037302,1779780705000,-1006.93019351,0.00039593,120]
[423037307,1779780705000,-4221.42134025,0.000396,120]
[423037308,1779780705000,-30710.0,0.000396,120]
[423037309,1779780705000,-240.8388978,0.00039648,120]
[423037250,1779780705000,-620.04298176,0.00039457,120]
[423037299,1779780705000,-1006.93019351,0.00039593,120]
[423037279,1779780705000,-185000.00000002,0.000395,40]
[423037293,1779780705000,-1006.93019351,0.00039593,120]
[423037283,1779780705000,-5700.0,0.000395,60]
[423037253,1779780705000,-202.42977513,0.00039457,120]
[423037281,1779780705000,-13183.50313575,0.000395,60]
[423037256,1779780705000,-202.42977513,0.00039457,120]
[423037257,1779780705000,-202.42977513,0.00039457,120]
[423037258,1779780705000,-75539.589864,0.00039457,120]
[423037255,1779780705000,-202.42977513,0.00039457,120]
[423037264,1779780705000,-157.0,0.00039458,120]
[423037267,1779780705000,-250.0,0.00039458,7]
[423037262,1779780705000,-230.0,0.00039458,120]
[423037263,1779780705000,-2000.0,0.00039458,120]
[423037265,1779780705000,-523.0751971,0.00039458,2]
[423037266,1779780705000,-250.0,0.00039458,7]
[423037268,1779780705000,-10000.0,0.00039462,15]
[423037280,1779780705000,-30853.0,0.000395,30]
[423037270,1779780705000,-111711.20499673,0.000395,20]
[423037271,1779780705000,-10000.0,0.000395,60]
[423037273,1779780705000,-600000.0,0.000395,120]
[423037272,1779780705000,-600000.0,0.000395,120]
[423037274,1779780705000,-600000.0,0.000395,120]
[423037276,1779780705000,-231.0,0.000395,120]
[423037278,1779780705000,-101150.0,0.000395,30]
[423037275,1779780705000,-114519.72,0.000395,120]
[423037282,1779780705000,-40000.0,0.000395,90]
[423037269,1779780705000,-775.4783256,0.00039495,2]
[423037277,1779780705000,-798.79641635,0.000395,120]
[423037346,1779780706000,-300.0,0.00039726,120]
[423037347,1779780706000,-300.0,0.00039726,120]
[423037349,1779780706000,-300.0,0.00039726,120]
[423037348,1779780706000,-300.0,0.00039726,120]
[423037344,1779780706000,-300.0,0.00039726,120]
[423037333,1779780706000,-300.0,0.00039726,120]
[423037341,1779780706000,-300.0,0.00039726,120]
[423037343,1779780706000,-300.0,0.00039726,120]
[423037342,1779780706000,-300.0,0.00039726,120]
[423037351,1779780706000,-6241.41,0.00039726,30]
[423037345,1779780706000,-300.0,0.00039726,120]
[423037352,1779780706000,-50000.0,0.00039726,60]
[423037365,1779780706000,-1006.93019351,0.0003973,120]
[423037361,1779780706000,-1006.93019351,0.0003973,120]
[423037356,1779780706000,-1006.93019351,0.0003973,120]
[423037354,1779780706000,-1500.0,0.00039726,120]
[423037357,1779780706000,-1006.93019351,0.0003973,120]
[423037358,1779780706000,-1006.93019351,0.0003973,120]
[423037362,1779780706000,-1006.93019351,0.0003973,120]
[423037355,1779780706000,-1006.93019352,0.0003973,120]
[423037359,1779780706000,-1006.93019351,0.0003973,120]
[423037360,1779780706000,-1006.93019351,0.0003973,120]
[423037372,1779780706000,-518.5,0.00039755,31]
[423037369,1779780706000,-13908.12100243,0.00039747,2]
[423037339,1779780706000,-300.0,0.00039726,120]
[423037353,1779780706000,-1068.72,0.00039726,60]
[423037332,1779780706000,-167.06718781,0.00039726,120]
[423037311,1779780706000,-221.8496169,0.00039648,120]
[423037338,1779780706000,-300.0,0.00039726,120]
[423037364,1779780706000,-1006.93019351,0.0003973,120]
[423037310,1779780706000,-233.42357294,0.00039648,120]
[423037313,1779780706000,-1100.0,0.0003965,120]
[423037312,1779780706000,-206.30397033,0.00039648,120]
[423037318,1779780706000,-5390.81189145,0.000397,30]
[423037314,1779780706000,-169.0,0.0003966,120]
[423037317,1779780706000,-185.81348857,0.00039699,120]
[423037316,1779780706000,-150.0,0.00039699,120]
[423037315,1779780706000,-1398.0,0.0003969,120]
[423037319,1779780706000,-600.0,0.000397,30]
[423037321,1779780706000,-5077.22728343,0.000397,61]
[423037322,1779780706000,-312.1442338,0.000397,2]
[423037337,1779780706000,-300.0,0.00039726,120]
[423037320,1779780706000,-6726.23473371,0.000397,61]
[423037324,1779780706000,-5378.0,0.000397,117]
[423037323,1779780706000,-20036.18067373,0.000397,120]
[423037327,1779780706000,-1362.55,0.00039715,2]
[423037325,1779780706000,-419.24,0.00039715,7]
[423037326,1779780706000,-314.43,0.00039715,2]
[423037329,1779780706000,-350.0,0.00039726,5]
[423037340,1779780706000,-300.0,0.00039726,120]
[423037336,1779780706000,-300.0,0.00039726,120]
[423037334,1779780706000,-300.0,0.00039726,120]
[423037335,1779780706000,-300.0,0.00039726,120]
[423037330,1779780706000,-322.19966626,0.00039726,25]
[423037331,1779780706000,-156.31073718,0.00039726,120]
[423037328,1779780706000,-966.7525,0.00039716,120]
[423037363,1779780706000,-1006.93019351,0.0003973,120]
[423037350,1779780706000,-50000.0,0.00039726,30]
[423037368,1779780706000,-160.94,0.0003974,120]
[423037395,1779780706000,-168.38880561,0.00039755,38]
[423037400,1779780706000,-1000.0,0.00039755,30]
[423037406,1779780706000,-666.72878,0.00039755,49]
[423037409,1779780706000,-5995.0,0.00039755,30]
[423037407,1779780706000,-156.587,0.00039755,31]
[423037408,1779780706000,-1000.0,0.00039755,30]
[423037402,1779780706000,-642.94,0.00039755,31]
[423037401,1779780706000,-168.38880561,0.00039755,38]
[423037403,1779780706000,-151.0,0.00039755,30]
[423037404,1779780706000,-1000.0,0.00039755,30]
[423037410,1779780706000,-500.0,0.00039755,30]
[423037405,1779780706000,-500.0,0.00039755,30]
[423037397,1779780706000,-1000.0,0.00039755,30]
[423037412,1779780706000,-3410.33179968,0.00039755,30]
[423037413,1779780706000,-162.380719,0.00039755,49]
[423037415,1779780706000,-500.0,0.00039755,30]
[423037419,1779780706000,-1000.0,0.00039755,30]
[423037418,1779780706000,-200.0,0.00039755,30]
[423037417,1779780706000,-151.0,0.00039755,30]
[423037421,1779780706000,-518.5,0.00039755,31]
[423037416,1779780706000,-160.0,0.00039755,30]
[423037424,1779780706000,-500.0,0.00039755,30]
[423037420,1779780706000,-716.97946143,0.00039755,32]
[423037423,1779780706000,-8385.27490691,0.00039755,30]
[423037422,1779780706000,-5995.0,0.00039755,30]
[423037370,1779780706000,-4000.0,0.00039753,60]
[423037414,1779780706000,-1000.0,0.00039755,30]
[423037393,1779780706000,-1000.0,0.00039755,30]
[423037411,1779780706000,-691.39774486,0.00039755,38]
[423037392,1779780706000,-162.380719,0.00039755,49]
[423037396,1779780706000,-168.38880561,0.00039755,38]
[423037366,1779780706000,-1006.93019351,0.0003973,120]
[423037367,1779780706000,-1006.93019351,0.0003973,120]
[423037373,1779780706000,-537.6845,0.00039755,49]
[423037371,1779780706000,-500.0,0.00039755,30]
[423037374,1779780706000,-557.5788265,0.00039755,38]
[423037386,1779780706000,-3345.472959,0.00039755,38]
[423037376,1779780706000,-151.0,0.00039755,30]
[423037379,1779780706000,-151.0,0.00039755,30]
[423037375,1779780706000,-3000.0,0.00039755,30]
[423037377,1779780706000,-3111.0,0.00039755,31]
[423037380,1779780706000,-151.0,0.00039755,31]
[423037383,1779780706000,-151.0,0.00039755,30]
[423037378,1779780706000,-1000.0,0.00039755,30]
[423037394,1779780706000,-156.587,0.00039755,31]
[423037391,1779780706000,-151.0,0.00039755,30]
[423037382,1779780706000,-1000.0,0.00039755,30]
[423037390,1779780706000,-162.380719,0.00039755,49]
[423037387,1779780706000,-156.587,0.00039755,31]
[423037389,1779780706000,-151.0,0.00039755,38]
[423037399,1779780706000,-620.0,0.00039755,30]
[423037398,1779780706000,-162.380719,0.00039755,49]
[423037384,1779780706000,-151.0,0.00039755,49]
[423037425,1779780706000,-220.0,0.00039755,30]
[423037385,1779780706000,-156.587,0.00039755,31]
[423037381,1779780706000,-3226.107,0.00039755,49]
[423037388,1779780706000,-1000.0,0.00039755,30]
[423037464,1779780707000,-220.0,0.00039755,30]
[423037469,1779780707000,-260.287,0.00039755,31]
[423037466,1779780707000,-557.57882651,0.00039755,38]
[423037463,1779780707000,-5995.0,0.00039755,30]
[423037474,1779780707000,-500.0,0.00039755,30]
[423037462,1779780707000,-200.0,0.00039755,30]
[423037458,1779780707000,-151.0,0.00039755,31]
[423037457,1779780707000,-6222.0,0.00039755,31]
[423037452,1779780707000,-151.0,0.00039755,49]
[423037461,1779780707000,-500.0,0.00039755,31]
[423037471,1779780707000,-151.0,0.00039755,30]
[423037460,1779780707000,-156.587,0.00039755,31]
[423037467,1779780707000,-1555.5,0.00039755,30]
[423037477,1779780707000,-178.42522448,0.00039755,38]
[423037468,1779780707000,-2074.0,0.00039755,30]
[423037470,1779780707000,-1107.63007,0.00039755,30]
[423037473,1779780707000,-7407.141672,0.00039755,49]
[423037472,1779780707000,-518.5,0.00039755,31]
[423037486,1779780707000,-162.380719,0.00039755,49]
[423037476,1779780707000,-3000.0,0.00039755,31]
[423037475,1779780707000,-151.0,0.00039755,38]
[423037481,1779780707000,-6452.214,0.00039755,49]
[423037478,1779780707000,-200.0,0.00039755,49]
[423037479,1779780707000,-559.19188,0.00039755,49]
[423037482,1779780707000,-225.02505134,0.00039755,30]
[423037480,1779780707000,-300.0,0.00039755,30]
[423037456,1779780707000,-172.05904,0.00039755,49]
[423037465,1779780707000,-500.0,0.00039755,30]
[423037459,1779780707000,-152.0,0.00039755,31]
[423037427,1779780707000,-168.3888056,0.00039755,38]
[423037454,1779780707000,-7142.856,0.00039755,31]
[423037485,1779780707000,-151.0,0.00039755,49]
[423037426,1779780707000,-151.0,0.00039755,31]
[423037436,1779780707000,-151.0,0.00039755,30]
[423037435,1779780707000,-151.0,0.00039755,30]
[423037430,1779780707000,-1030.0,0.00039755,30]
[423037429,1779780707000,-520.0,0.00039755,30]
[423037431,1779780707000,-6888.0,0.00039755,30]
[423037428,1779780707000,-500.0,0.00039755,30]
[423037434,1779780707000,-165.92,0.00039755,31]
[423037433,1779780707000,-200.0,0.00039755,30]
[423037432,1779780707000,-6000.0,0.00039755,30]
[423037437,1779780707000,-500.0,0.00039755,30]
[423037444,1779780707000,-251.0,0.00039755,30]
[423037447,1779780707000,-220.0,0.00039755,30]
[423037446,1779780707000,-500.0,0.00039755,30]
[423037445,1779780707000,-500.0,0.00039755,30]
[423037438,1779780707000,-152.0,0.00039755,30]
[423037440,1779780707000,-1500.0,0.00039755,30]
[423037439,1779780707000,-200.0,0.00039755,30]
[423037441,1779780707000,-5995.0,0.00039755,30]
[423037442,1779780707000,-2000.0,0.00039755,30]
[423037443,1779780707000,-537.6845,0.00039755,49]
[423037448,1779780707000,-500.0,0.00039755,30]
[423037449,1779780707000,-3000.0,0.00039755,30]
[423037450,1779780707000,-1068.11,0.00039755,30]
[423037451,1779780707000,-500.0,0.00039755,30]
[423037455,1779780707000,-539.24,0.00039755,31]
[423037453,1779780707000,-200.0,0.00039755,31]
[423037483,1779780707000,-5995.0,0.00039755,30]
[423037484,1779780707000,-238.4929562,0.00039755,30]
[423037497,1779780707000,-537.6845,0.00039755,49]
[423037523,1779780707000,-5995.0,0.00039755,30]
[423037522,1779780707000,-500.0,0.00039755,30]
[423037517,1779780707000,-334.54729592,0.00039755,38]
[423037519,1779780707000,-168.38880561,0.00039755,38]
[423037521,1779780707000,-2398.41194029,0.00039755,30]
[423037526,1779780707000,-5995.0,0.00039755,30]
[423037531,1779780707000,-160.0,0.00039755,31]
[423037532,1779780707000,-5995.0,0.00039755,30]
[423037527,1779780707000,-160.0,0.00039755,30]
[423037534,1779780707000,-2697.24817226,0.00039755,30]
[423037528,1779780707000,-500.0,0.00039755,30]
[423037535,1779780707000,-5995.0,0.00039755,30]
[423037529,1779780707000,-2579.17784982,0.00039755,30]
[423037518,1779780707000,-5995.0,0.00039755,30]
[423037536,1779780707000,-160.0,0.00039755,49]
[423037538,1779780707000,-500.0,0.00039755,30]
[423037546,1779780707000,-5995.0,0.00039755,30]
[423037547,1779780707000,-500.0,0.00039755,30]
[423037537,1779780707000,-500.0,0.00039755,30]
[423037544,1779780707000,-5995.0,0.00039755,30]
[423037540,1779780707000,-160.0,0.00039755,38]
[423037545,1779780707000,-500.0,0.00039755,30]
[423037542,1779780707000,-500.0,0.00039755,30]
[423037539,1779780707000,-5995.0,0.00039755,30]
[423037541,1779780707000,-500.0,0.00039755,30]
[423037543,1779780707000,-5995.0,0.00039755,30]
[423037488,1779780707000,-500.0,0.00039755,30]
[423037548,1779780707000,-500.0,0.00039755,30]
[423037530,1779780707000,-500.0,0.00039755,30]
[423037520,1779780707000,-500.0,0.00039755,30]
[423037533,1779780707000,-500.0,0.00039755,30]
[423037515,1779780707000,-2312.83697232,0.00039755,30]
[423037493,1779780707000,-269.91761901,0.00039755,49]
[423037525,1779780707000,-500.0,0.00039755,30]
[423037496,1779780707000,-156.587,0.00039755,31]
[423037499,1779780707000,-7681.20591388,0.00039755,38]
[423037487,1779780707000,-152.0,0.00039755,49]
[423037489,1779780707000,-500.0,0.00039755,49]
[423037491,1779780707000,-1148.61238259,0.00039755,30]
[423037490,1779780707000,-2150.738,0.00039755,30]
[423037492,1779780707000,-1613.0535,0.00039755,30]
[423037494,1779780707000,-200.0,0.00039755,38]
[423037495,1779780707000,-500.0,0.00039755,30]
[423037500,1779780707000,-5995.0,0.00039755,30]
[423037501,1779780707000,-6690.94591801,0.00039755,38]